bitfinex-derivatives/quotes_SOLF0:USTF0_20260302
["timestamp","ask_amount","ask_price","bid_price","bid_amount"]
[1772477983670,49.28665365,87.281,87.228,10.316]
[1772477984073,59.59665365,87.281,87.228,10.316]
[1772477984275,34.34,87.278,87.2,8.98227326]
[1772477984472,34.34,87.274,87.226,10.316]
[1772477984671,49.29134602,87.273,87.226,10.316]
[1772477985682,10.55199842,87.322,87.2,8.98227326]
[1772477985683,34.34,87.294,87.22,8.98227326]
[1772477985880,11.44,87.349,87.22,8.98227326]
[1772477986082,10.305,87.324,87.272,10.311]
[1772477986673,34.34,87.323,87.272,10.311]
[1772477986878,34.34,87.321,87.272,10.311]
[1772477987779,34.34,87.317,87.272,10.311]
[1772477988085,34.34,87.315,87.272,10.311]
[1772477988282,40.33677864,87.313,87.272,10.311]
[1772477988886,40.33677864,87.313,87.242,20.629]
[1772477989388,40.33677864,87.313,87.279,10.31]
[1772477990091,40.33677864,87.313,87.286,10.309]
[1772477990890,40.33677864,87.313,87.242,20.629]
[1772477991085,74.69179885,87.331,87.24,8.98227326]
[1772477991290,74.69179885,87.331,87.222,160.487]
[1772477991291,40.35179885,87.331,87.26,8.98227326]
[1772477994998,40.35179885,87.331,87.288,10.309]
[1772478000495,40.35179885,87.331,87.263,20.624]
[1772478000892,34.34,87.338,87.26,14.13590759]
[1772478000893,34.34,87.348,87.27,5.15363433]
[1772478001090,34.34,87.348,87.28,8.98227326]
[1772478001290,34.34,87.348,87.265,20.624]
[1772478001498,34.34,87.369,87.265,20.624]
[1772478001697,8.98227326,87.33,87.24,8.98227326]
[1772478001891,34.34,87.329,87.24,8.98227326]
[1772478002089,34.34,87.329,87.273,10.311]
[1772478002090,10.305,87.317,87.273,10.311]
[1772478002290,34.34,87.329,87.273,10.311]
[1772478002490,34.34,87.329,87.24,14.13590759]
[1772478002697,44.644,87.328,87.279,10.31]
[1772478002894,31.05055477,87.327,87.279,10.31]
[1772478003295,31.05055477,87.327,87.279,5.55]
[1772478004098,31.89315767,87.324,87.279,5.55]
[1772478004400,31.89315767,87.304,87.221,20.634]
[1772478004697,34.34,87.295,87.2,8.98227326]
[1772478004898,31.9002035,87.29,87.2,8.98227326]
[1772478005105,31.9002035,87.29,87.22,8.98227326]
[1772478006196,31.9002035,87.29,87.239,10.64632053]
[1772478006402,31.9002035,87.29,87.243,10.64632053]
[1772478007199,31.9002035,87.29,87.246,10.64632053]
[1772478007406,31.9002035,87.29,87.237,10.64632053]
[1772478007904,31.9002035,87.29,87.243,10.64632053]
[1772478008202,31.9002035,87.29,87.246,10.64632053]
[1772478008397,31.9002035,87.29,87.25,10.64632053]
[1772478009199,31.9002035,87.29,87.257,10.312]
[1772478009402,31.9002035,87.29,87.241,10.64632053]
[1772478009605,31.9002035,87.29,87.238,10.64632053]
[1772478009806,31.9002035,87.29,87.232,10.64632053]
[1772478010104,31.9002035,87.29,87.187,28.00700325]
[1772478010105,31.7520037,87.311,87.259,10.64632053]
[1772478010405,31.7520037,87.311,87.251,10.64632053]
[1772478011003,31.7520037,87.311,87.256,10.64632053]
[1772478011201,31.75643783,87.302,87.252,10.64632053]
[1772478011409,31.75643783,87.302,87.237,10.64632053]
[1772478011703,31.75643783,87.302,87.22,8.98227326]
[1772478011704,31.75643783,87.302,87.245,10.64632053]
[1772478011906,31.75643783,87.302,87.261,10.312]
[1772478012913,31.36616416,87.3,87.253,10.313]
[1772478014112,31.36616416,87.3,87.259,10.312]
[1772478014314,31.36616416,87.3,87.245,10.67152664]
[1772478014612,31.36616416,87.3,87.251,10.67152664]
[1772478015314,8.999042,87.35,87.259,17.12111959]
[1772478015517,8.999042,87.35,87.26,17.12111959]
[1772478015815,10.305,87.323,87.275,10.31]
[1772478016313,34.34,87.349,87.26,17.12111959]
[1772478016512,8.999042,87.35,87.25,8.999042]
[1772478016513,34.34,87.347,87.266,17.64458476]
[1772478016708,10.303,87.339,87.29,10.309]
[1772478016915,34.34,87.338,87.279,17.75980696]
[1772478017307,8.999042,87.35,87.279,17.75980696]
[1772478017308,29.80676335,87.336,87.279,17.75980696]
[1772478017817,29.80676335,87.336,87.291,10.309]
[1772478018207,29.80676335,87.336,87.279,17.75980696]
[1772478018412,29.80676335,87.336,87.297,10.308]
[1772478021222,29.80676335,87.336,87.283,10.67152664]
[1772478021519,29.80676335,87.351,87.288,18.53448009]
[1772478021719,29.80676335,87.349,87.288,18.53448009]
[1772478022918,29.80676335,87.349,87.301,10.307]
[1772478023119,29.80676335,87.349,87.288,18.53448009]
[1772478025226,29.80676335,87.347,87.288,18.53448009]
[1772478026931,29.80676335,87.344,87.288,18.53448009]
[1772478027323,29.80676335,87.333,87.27,10.67152664]
[1772478027525,29.80676335,87.333,87.269,30.07457849]
[1772478028228,29.80676335,87.323,87.283,10.309]
[1772478031623,29.80676335,87.321,87.26,10.67517174]
[1772478031923,29.80676335,87.311,87.25,10.67517174]
[1772478032128,29.80676335,87.303,87.254,10.313]
[1772478033324,29.80676335,87.299,87.246,10.314]
[1772478033930,29.80676335,87.291,87.246,10.314]
[1772478034430,29.80676335,87.291,87.243,10.67517174]
[1772478034629,29.80676335,87.291,87.244,10.67517174]
[1772478034933,29.80676335,87.291,87.241,19.80556735]
[1772478035137,29.80676335,87.288,87.225,14.19509404]
[1772478035432,10.65676835,87.346,87.152,34.96301484]
[1772478035433,29.80676335,87.281,87.201,29.09837689]
[1772478035828,29.80676335,87.269,87.201,29.09837689]
[1772478036026,29.80676335,87.261,87.185,29.09837689]
[1772478036331,8.999042,87.29,87.2,29.09837689]
[1772478036531,8.999042,87.31,87.211,29.09837689]
[1772478037235,10.309,87.289,87.241,10.314]
[1772478038029,9.34384659,87.304,87.231,29.09837689]
[1772478038231,8.999042,87.33,87.231,29.09837689]
[1772478038431,34.34,87.321,87.231,29.09837689]
[1772478038632,29.80676335,87.311,87.255,10.313]
[1772478039328,64.14676335,87.303,87.255,10.313]
[1772478039833,29.80676335,87.302,87.255,10.313]
[1772478041338,29.80676335,87.301,87.255,10.313]
[1772478043440,29.80676335,87.301,87.262,10.312]
[1772478043640,34.34,87.309,87.246,29.09837689]
[1772478044242,29.80676335,87.318,87.246,29.09837689]
[1772478044439,29.80676335,87.316,87.246,29.09837689]
[1772478044839,29.80676335,87.316,87.279,10.31]
[1772478045038,29.80676335,87.316,87.229,43.29347093]
[1772478045342,8.999042,87.35,87.211,20.636]
[1772478045343,29.80676335,87.306,87.23,29.09837689]
[1772478046239,29.80676335,87.305,87.259,10.312]
[1772478046440,29.80676335,87.305,87.23,29.09837689]
[1772478047440,29.80676335,87.303,87.251,10.313]
[1772478048143,31.28337215,87.299,87.23,29.09837689]
[1772478048333,34.34,87.287,87.22,8.999042]
[1772478048537,31.28337215,87.286,87.22,8.999042]
[1772478049441,31.28337215,87.282,87.221,32.52214401]
[1772478050546,31.28337215,87.282,87.246,10.314]
[1772478051152,31.28337215,87.298,87.244,32.52214401]
[1772478051653,31.28337215,87.298,87.223,32.52214401]
[1772478052248,31.28337215,87.296,87.223,32.52214401]
[1772478052451,31.28337215,87.296,87.254,10.313]
[1772478054749,31.28337215,87.296,87.246,10.314]
[1772478055354,10.308,87.295,87.252,10.313]
[1772478055861,31.28337215,87.276,87.219,32.52214401]
[1772478057552,31.28337215,87.266,87.202,32.52214401]
[1772478058559,31.28337215,87.266,87.22,3.36279618]
[1772478060153,31.28337215,87.266,87.238,10.315]
[1772478060961,31.28337215,87.266,87.231,10.316]
[1772478061467,3.36279618,87.32,87.26,3.36279618]
[1772478061660,3.36279618,87.31,87.25,35.88494019]
[1772478062060,3.36279618,87.31,87.26,3.36279618]
[1772478062457,3.36279618,87.32,87.26,3.36279618]
[1772478063066,3.36279618,87.31,87.26,3.36279618]
[1772478063669,31.28337215,87.306,87.26,3.36279618]
[1772478064257,31.28337215,87.306,87.262,10.312]
[1772478065763,31.28337215,87.306,87.269,10.311]
[1772478066062,34.34,87.315,87.27,3.36279618]
[1772478066460,65.62337215,87.315,87.275,10.31]
[1772478066664,31.28337215,87.314,87.26,3.36279618]
[1772478066967,31.28337215,87.314,87.27,3.36279618]
[1772478068664,31.28337215,87.314,87.267,10.311]
[1772478069764,10.308,87.293,87.24,3.36279618]
[1772478070068,31.28337215,87.289,87.232,32.52214401]
[1772478070262,31.28337215,87.289,87.205,20.638]
[1772478070263,3.36279618,87.3,87.25,3.36279618]
[1772478070566,31.28337215,87.297,87.25,3.36279618]
[1772478070763,31.28337215,87.297,87.252,10.313]
[1772478071158,31.28337215,87.297,87.25,3.36279618]
[1772478071159,31.28337215,87.295,87.24,3.36279618]
[1772478071466,31.28337215,87.295,87.25,3.36279618]
[1772478071768,31.28337215,87.295,87.26,10.312]
[1772478071968,34.64616833,87.31,87.26,13.67479618]
[1772478072266,31.28337215,87.305,87.26,3.36279618]
[1772478072463,31.28337215,87.289,87.23,3.36279618]
[1772478072668,31.28337215,87.279,87.224,32.52214401]
[1772478073165,31.28337215,87.279,87.231,10.316]
[1772478073663,31.28337215,87.279,87.24,3.36279618]
[1772478074068,34.34,87.292,87.24,3.36279618]
[1772478074262,65.62337215,87.292,87.24,3.36279618]
[1772478074461,31.28337215,87.291,87.24,3.36279618]
[1772478074666,31.28337215,87.288,87.23,3.36279618]
[1772478074868,31.28337215,87.288,87.224,32.52214401]
[1772478074869,31.28337215,87.288,87.24,3.36279618]
[1772478076463,32.98731629,87.287,87.242,10.314]
[1772478076659,32.98731629,87.287,87.24,3.36127345]
[1772478078363,32.98731629,87.287,87.249,10.313]
[1772478079565,33.36309057,87.284,87.23,3.36127345]
[1772478080366,33.36309057,87.277,87.233,10.315]
[1772478080566,33.36309057,87.277,87.23,3.36127345]
[1772478081068,33.36309057,87.277,87.24,10.315]
[1772478082163,33.36309057,87.277,87.24,13.67627345]
[1772478085068,33.36309057,87.277,87.24,3.36127345]
[1772478086071,33.36309057,87.277,87.25,3.36127345]
[1772478086270,3.36127345,87.3,87.25,3.36127345]
[1772478086271,34.34,87.299,87.25,3.36127345]
[1772478086470,34.34,87.297,87.25,3.36127345]
[1772478086668,33.36309057,87.298,87.26,3.36127345]
[1772478086971,34.34,87.307,87.26,3.36127345]
[1772478087170,67.70309057,87.307,87.26,3.36127345]
[1772478087369,33.36309057,87.306,87.26,3.36127345]
[1772478089073,33.36309057,87.305,87.26,3.36127345]
[1772478089270,33.36309057,87.305,87.25,3.36127345]
[1772478089470,33.36309057,87.305,87.26,3.36127345]
[1772478090374,33.36309057,87.305,87.26,13.67327345]
[1772478090974,33.36309057,87.305,87.26,3.36127345]
[1772478091767,33.36309057,87.305,87.261,10.312]
[1772478092676,33.36309057,87.305,87.25,3.36127345]
[1772478092872,33.36309057,87.305,87.26,3.36127345]
[1772478093266,33.36309057,87.305,87.267,10.311]
[1772478095277,33.36309057,87.305,87.273,10.311]
[1772478096075,33.36309057,87.305,87.265,10.311]
[1772478097173,43.67009057,87.305,87.265,10.311]
[1772478097374,33.36309057,87.304,87.265,10.311]
[1772478098072,33.36309057,87.304,87.271,10.311]
[1772478098372,33.36309057,87.304,87.25,3.36127345]
[1772478098573,33.36309057,87.299,87.248,31.91230431]
[1772478098875,33.36309057,87.299,87.258,10.312]
[1772478099376,3.36127345,87.31,87.258,10.312]
[1772478099377,33.36309057,87.297,87.258,10.312]
[1772478102880,34.34,87.268,87.21,3.36127345]
[1772478103076,33.36309057,87.267,87.21,3.36127345]
[1772478103280,33.36309057,87.267,87.21,35.27357776]
[1772478103877,33.36309057,87.284,87.231,31.91230431]
[1772478104077,33.36309057,87.284,87.25,3.36127345]
[1772478104278,33.36309057,87.299,87.25,3.36127345]
[1772478104979,67.70309057,87.298,87.252,10.313]
[1772478105880,33.36309057,87.297,87.252,10.313]
[1772478106082,33.36309057,87.297,87.245,10.314]
[1772478106483,33.36309057,87.293,87.245,10.314]
[1772478106685,33.36309057,87.293,87.251,10.313]
[1772478107879,34.34,87.328,87.22,43.946094]
[1772478107880,32.44590571,87.269,87.22,43.946094]
[1772478108081,32.44590571,87.269,87.221,33.629094]
[1772478108482,34.34,87.299,87.25,3.36127345]
[1772478108683,66.78590571,87.298,87.25,3.36127345]
[1772478109078,32.44590571,87.297,87.25,3.36127345]
[1772478109685,32.44590571,87.289,87.23,3.36127345]
[1772478109887,34.34,87.268,87.21,3.36127345]
[1772478110085,32.44590571,87.267,87.21,3.36127345]
[1772478110484,32.44590571,87.257,87.206,10.319]
[1772478110980,10.314,87.246,87.2,3.36127345]
[1772478111286,32.44590571,87.245,87.191,33.629094]
[1772478112289,32.44590571,87.245,87.202,10.319]
[1772478112587,34.34,87.218,87.16,3.36127345]
[1772478112892,32.44590571,87.209,87.157,33.629094]
[1772478113092,32.44590571,87.226,87.18,3.36127345]
[1772478113790,32.44590571,87.226,87.181,10.321]
[1772478116189,32.44590571,87.224,87.17,3.36127345]
[1772478116390,32.44590571,87.224,87.18,3.36127345]
[1772478117698,32.44590571,87.224,87.179,10.322]
[1772478117991,32.44590571,87.222,87.17,3.36127345]
[1772478118194,32.44590571,87.222,87.169,10.323]
[1772478118788,32.44590571,87.217,87.169,10.323]
[1772478119595,32.44590571,87.213,87.161,10.324]
[1772478119786,3.36127345,87.2,87.154,33.629094]
[1772478119993,35.80717916,87.21,87.154,33.629094]
[1772478120190,32.44590571,87.21,87.164,10.323]
[1772478120396,32.44590571,87.226,87.18,3.36127345]
[1772478121296,42.76190571,87.226,87.18,3.36127345]
[1772478121490,32.44590571,87.219,87.17,3.36127345]
[1772478121895,32.44590571,87.345,87.233,33.629094]
[1772478122099,32.44590571,87.339,87.28,3.36127345]
[1772478122301,32.44590571,87.329,87.247,10.314]
[1772478122495,32.44590571,87.309,87.24,3.36127345]
[1772478122695,32.44590571,87.289,87.213,33.629094]
[1772478122898,32.44590571,87.289,87.221,10.317]
[1772478123097,183.42,87.353,87.192,33.629094]
[1772478123098,32.44590571,87.279,87.21,3.36127345]
[1772478123301,32.44590571,87.269,87.2,3.36127345]
[1772478123603,32.44590571,87.259,87.19,3.36127345]
[1772478125200,32.44590571,87.259,87.2,10.319]
[1772478125502,32.44590571,87.259,87.19,3.36127345]
[1772478125697,32.44590571,87.249,87.18,3.36127345]
[1772478126402,32.44590571,87.239,87.17,3.36127345]
[1772478127002,32.44590571,87.219,87.15,3.36127345]
[1772478127399,32.44590571,87.219,87.16,3.36127345]
[1772478127705,124.0,87.34,87.091,20.665]
[1772478127706,32.44590571,87.199,87.13,3.36127345]
[1772478127905,34.34,87.305,87.13,3.36127345]
[1772478127906,32.44590571,87.189,87.13,3.36127345]
[1772478129207,32.44590571,87.189,87.115,33.629094]
[1772478129208,32.44590571,87.189,87.14,3.36127345]
[1772478129804,32.44590571,87.189,87.13,3.36127345]
[1772478130007,32.44590571,87.189,87.131,10.327]
[1772478132811,32.44590571,87.189,87.089,10.62065127]
[1772478132812,32.44590571,87.206,87.153,10.325]
[1772478133512,32.44590571,87.223,87.164,10.323]
[1772478133907,32.44590571,87.223,87.133,33.629094]
[1772478134112,32.44590571,87.223,87.12,9.02477274]
[1772478134408,32.44590571,87.209,87.12,9.02477274]
[1772478134604,32.44590571,87.209,87.063,20.671]
[1772478134605,32.44590571,87.209,87.1,9.02477274]
[1772478135004,34.34,87.299,87.1,9.02477274]
[1772478135005,32.44590571,87.259,87.18,9.02477274]
[1772478135207,32.44590571,87.259,87.115,160.685]
[1772478135208,32.44590571,87.229,87.125,33.629094]
[1772478135508,32.44590571,87.229,87.078,160.752]
[1772478135509,34.37458701,87.209,87.12,9.02477274]
[1772478135807,34.37458701,87.189,87.106,33.629094]
[1772478136008,34.37458701,87.164,87.106,33.629094]
[1772478136415,34.37458701,87.164,87.091,34.76579419]
[1772478136716,34.37458701,87.164,87.103,10.331]
[1772478137112,34.37458701,87.164,87.081,34.76579419]
[1772478138114,34.37458701,87.164,87.082,10.333]
[1772478138313,34.37458701,87.164,87.061,36.32222519]
[1772478138510,34.24835908,87.159,87.061,36.32222519]
[1772478138708,34.24835908,87.118,87.061,36.32222519]
[1772478138914,34.24835908,87.118,87.043,36.32222519]
[1772478139215,34.24835908,87.118,87.03,20.91537221]
[1772478139811,160.605,87.159,87.03,11.88692283]
[1772478139812,34.24835908,87.098,87.03,11.88692283]
[1772478140009,34.24835908,87.098,87.03,48.20914802]
[1772478140211,34.24835908,87.098,87.031,46.66122519]
[1772478140416,34.24835908,87.098,87.031,36.32222519]
[1772478140714,34.24835908,87.098,87.03,11.88692283]
[1772478140715,34.24835908,87.129,87.041,36.32222519]
[1772478140909,34.24835908,87.129,87.062,10.336]
[1772478141311,34.24835908,87.129,87.03,11.88692283]
[1772478141312,34.24835908,87.129,87.06,45.35067457]
[1772478141513,34.24835908,87.169,87.081,36.32222519]
[1772478141816,34.24835908,87.169,87.104,10.331]
[1772478142018,34.24835908,87.169,87.1,45.35067457]
[1772478142219,34.24835908,87.199,87.12,9.02844938]
[1772478142419,34.24835908,87.197,87.126,10.328]
[1772478144618,34.24835908,87.197,87.098,36.32222519]
[1772478144818,34.24835908,87.183,87.112,10.33]
[1772478145015,34.24835908,87.179,87.08,45.35067457]
[1772478146324,34.24835908,87.159,87.09,10.332]
[1772478146922,34.24835908,87.157,87.09,10.332]
[1772478148525,34.24835908,87.155,87.09,10.332]
[1772478150025,34.24835908,87.179,87.091,36.32222519]
[1772478151331,10.323,87.167,87.103,10.331]
[1772478151527,34.24835908,87.167,87.091,36.32222519]
[1772478152829,34.24835908,87.147,87.091,36.32222519]
[1772478153032,34.24835908,87.147,87.038,14.1095826]
[1772478153033,34.24835908,87.147,87.071,36.32222519]
[1772478153931,10.328,87.126,87.071,46.65622519]
[1772478154822,10.329,87.118,87.071,36.32222519]
[1772478155027,34.24835908,87.13,87.071,36.32222519]
[1772478155330,10.327,87.127,87.072,10.333]
[1772478155730,10.327,87.127,87.073,36.32222519]
[1772478156230,10.327,87.127,87.02,20.682]
[1772478156231,34.24835908,87.15,87.081,36.32222519]
[1772478156735,34.24835908,87.15,87.1,10.33]
[1772478156944,34.24835908,87.169,87.101,36.32222519]
[1772478157136,20.636,87.204,87.101,36.32222519]
[1772478157137,10.321,87.175,87.117,10.328]
[1772478157329,10.321,87.175,87.117,46.65022519]
[1772478157634,34.24835908,87.187,87.117,36.32222519]
[1772478157828,34.24835908,87.187,87.1,45.35067457]
[1772478158230,10.322,87.168,87.108,10.329]
[1772478158633,10.322,87.168,87.1,45.35067457]
[1772478158832,34.24835908,87.187,87.131,10.326]
[1772478159136,34.24835908,87.187,87.124,36.32222519]
[1772478159538,10.322,87.171,87.121,10.328]
[1772478160232,34.24835908,87.187,87.106,36.32222519]
[1772478160437,34.24835908,87.17,87.106,36.32222519]
[1772478160838,10.323,87.162,87.115,10.328]
[1772478161232,34.24835908,87.17,87.115,10.328]
[1772478161432,34.24835908,87.167,87.097,10.33]
[1772478161839,34.24835908,87.167,87.091,36.32222519]
[1772478162531,10.324,87.151,87.095,10.331]
[1772478162731,34.24835908,87.167,87.073,36.32222519]
[1772478163133,34.24835908,87.145,87.073,36.32222519]
[1772478163642,34.24835908,87.159,87.073,36.32222519]
[1772478163938,10.325,87.141,87.09,10.331]
[1772478164733,34.24835908,87.142,87.079,10.332]
[1772478165239,34.24835908,87.142,87.073,36.32222519]
[1772478165735,20.641,87.184,87.101,36.32222519]
[1772478165736,10.324,87.15,87.101,36.32222519]
[1772478166730,10.325,87.143,87.101,36.32222519]
[1772478166946,34.24835908,87.165,87.092,10.331]
[1772478167642,10.326,87.137,87.092,10.331]
[1772478168238,10.326,87.137,87.073,10.56115112]
[1772478168239,10.325,87.145,87.096,36.11643376]
[1772478169235,33.67938082,87.168,87.098,36.11643376]
[1772478170142,10.324,87.147,87.1,10.331]
[1772478171540,33.67938082,87.153,87.098,36.11643376]
[1772478171541,33.67938082,87.153,87.106,10.33]
[1772478172442,10.327,87.138,87.098,36.11643376]
[1772478172744,33.67938082,87.153,87.098,36.11643376]
[1772478173133,33.67938082,87.177,87.107,36.11643376]
[1772478174043,33.67938082,87.177,87.123,36.11643376]
[1772478174343,33.67938082,87.177,87.113,10.66088107]
[1772478174544,33.67938082,87.177,87.105,36.11643376]
[1772478174740,33.67938082,87.177,87.107,36.11643376]
[1772478175343,10.324,87.161,87.119,10.329]
[1772478175734,10.322,87.18,87.133,10.327]
[1772478175943,33.67938082,87.194,87.12,36.11643376]
[1772478176548,33.67938082,87.194,87.134,36.11643376]
[1772478176744,33.67938082,87.21,87.141,36.11643376]
[1772478177243,33.67938082,87.21,87.161,46.44043376]
[1772478177443,33.67938082,87.249,87.161,36.11643376]
[1772478177741,10.317,87.222,87.169,10.323]
[1772478177948,33.67938082,87.231,87.16,9.02844938]
[1772478177949,33.67938082,87.231,87.17,36.11643376]
[1772478178246,10.315,87.24,87.16,19.68933045]
[1772478178552,33.67938082,87.252,87.181,36.11643376]
[1772478179941,33.67938082,87.27,87.201,36.11643376]
[1772478180342,33.67938082,87.307,87.221,36.11643376]
[1772478180542,33.67938082,87.307,87.191,160.545]
[1772478180543,9.02844938,87.29,87.214,36.11643376]
[1772478180745,33.67938082,87.289,87.195,36.11643376]
[1772478181048,10.313,87.25,87.195,36.11643376]
[1772478181343,33.67938082,87.258,87.177,36.11643376]
[1772478181745,33.67938082,87.241,87.177,36.11643376]
[1772478182645,10.316,87.23,87.177,36.11643376]
[1772478183149,33.67938082,87.269,87.177,36.11643376]
[1772478183344,9.02844938,87.27,87.184,10.321]
[1772478183345,33.67938082,87.249,87.184,10.321]
[1772478183646,33.67938082,87.249,87.185,36.11643376]
[1772478183847,33.67938082,87.249,87.188,46.43743376]
[1772478184044,33.67938082,87.249,87.188,36.11643376]
[1772478184446,10.314,87.248,87.188,36.11643376]
[1772478185540,10.312,87.261,87.19,36.11643376]
[1772478186141,33.67938082,87.247,87.168,36.11643376]
[1772478186747,33.67938082,87.247,87.186,10.321]
[1772478186948,33.67938082,87.247,87.187,36.11643376]
[1772478187251,33.67938082,87.247,87.134,20.655]
[1772478187252,33.67938082,87.228,87.161,36.11643376]
[1772478188044,10.316,87.225,87.163,36.11643376]
[1772478189049,10.319,87.206,87.163,36.11643376]
[1772478189249,10.319,87.206,87.152,10.325]
[1772478189546,10.319,87.206,87.146,36.11643376]
[1772478189752,33.67938082,87.203,87.146,36.11643376]
[1772478191056,10.318,87.211,87.148,36.11643376]
[1772478191850,10.319,87.203,87.148,36.11643376]
[1772478193053,10.319,87.203,87.149,10.325]
[1772478193554,10.32,87.194,87.148,36.11643376]
[1772478194352,33.67938082,87.193,87.121,10.329]
[1772478194553,33.67938082,87.164,87.112,36.11643376]
[1772478194760,33.67938082,87.164,87.1,9.02844938]
[1772478194952,33.67938082,87.164,87.103,10.331]
[1772478195359,33.67938082,87.164,87.095,36.11643376]
[1772478195360,10.325,87.148,87.095,36.11643376]
[1772478195555,33.67938082,87.148,87.095,36.11643376]
[1772478195751,33.67938082,87.148,87.079,10.66088107]
[1772478195752,10.328,87.123,87.074,36.11643376]
[1772478195952,36.67111518,87.122,87.054,37.28909736]
[1772478196154,36.67111518,87.122,87.057,10.336]
[1772478196462,36.67111518,87.117,87.057,10.336]
[1772478196852,10.33,87.111,87.054,37.28909736]
[1772478197053,47.00111518,87.111,87.054,37.28909736]
[1772478197360,45.50709366,87.13,87.054,37.28909736]
[1772478197758,36.46692782,87.152,87.065,34.16659111]
[1772478197956,36.46692782,87.19,87.101,34.16659111]
[1772478198154,36.46692782,87.19,87.121,34.16659111]
[1772478198355,36.46692782,87.229,87.121,34.16659111]
[1772478198961,36.46692782,87.197,87.121,34.16659111]
[1772478199260,36.46692782,87.223,87.141,34.16659111]
[1772478200361,10.318,87.21,87.155,10.325]
[1772478200757,20.625,87.261,87.141,34.16659111]
[1772478200758,10.32,87.191,87.141,34.16659111]
[1772478200961,45.50709366,87.23,87.141,34.16659111]
[1772478201261,10.317,87.222,87.161,10.324]
[1772478201861,10.317,87.222,87.17,10.323]
[1772478202059,36.46692782,87.269,87.17,34.16659111]
[1772478202461,36.46692782,87.269,87.177,10.322]
[1772478202763,10.315,87.234,87.177,10.322]
[1772478202963,36.46692782,87.233,87.17,34.16659111]
[1772478203260,10.316,87.231,87.17,34.16659111]
[1772478203464,36.46692782,87.233,87.17,34.16659111]
[1772478203664,10.315,87.232,87.171,10.323]
[1772478204264,36.46692782,87.253,87.181,34.16659111]
[1772478206368,183.46,87.286,87.162,34.16659111]
[1772478206369,36.46692782,87.243,87.162,34.16659111]
[1772478207470,10.314,87.241,87.184,10.321]
[1772478207769,10.314,87.241,87.162,34.16659111]
[1772478207972,36.46692782,87.243,87.174,34.16659111]
[1772478208672,36.46692782,87.241,87.16,9.04016584]
[1772478208868,36.46692782,87.241,87.161,34.16659111]
[1772478210265,10.317,87.221,87.162,34.16659111]
[1772478210672,36.46692782,87.241,87.162,34.16659111]
[1772478211971,36.46692782,87.26,87.178,34.16659111]
[1772478213268,10.314,87.244,87.187,10.321]
[1772478215370,10.315,87.235,87.178,44.48859111]
[1772478215567,36.46692782,87.243,87.17,9.04016584]
[1772478215769,36.46692782,87.243,87.159,34.16659111]
[1772478217373,10.316,87.226,87.169,10.323]
[1772478217871,10.315,87.234,87.175,10.322]
[1772478218073,36.46692782,87.243,87.175,10.322]
[1772478218467,36.46692782,87.243,87.17,34.16659111]
[1772478218468,10.315,87.236,87.176,34.16659111]
[1772478218772,36.46692782,87.243,87.176,34.16659111]
[1772478219268,36.46692782,87.243,87.139,21.24130254]
[1772478219269,26.041832,87.189,87.111,15.50568369]
[1772478219469,36.46692782,87.149,86.981,160.933]
[1772478219672,36.46692782,87.149,87.05,9.04016584]
[1772478219879,36.46692782,87.125,87.05,5.16037973]
[1772478220066,36.46692782,87.125,87.04,9.04016584]
[1772478221166,36.46692782,87.119,87.02,9.04016584]
[1772478221576,36.46692782,87.119,87.026,34.16659111]
[1772478222277,10.333,87.083,87.026,34.16659111]
[1772478222780,10.332,87.095,87.031,34.16659111]
[1772478223279,36.46692782,87.117,87.031,34.16659111]
[1772478224070,36.46692782,87.117,87.033,34.16659111]
[1772478225273,36.46692782,87.117,87.03,20.92708867]
[1772478225274,10.33,87.109,87.036,34.16659111]
[1772478225779,36.46692782,87.117,87.036,34.16659111]
[1772478225971,10.331,87.097,87.036,34.16659111]
[1772478226369,36.46692782,87.136,87.051,34.16659111]
[1772478226674,36.46692782,87.157,87.071,34.16659111]
[1772478227175,36.46692782,87.157,87.083,34.16659111]
[1772478227482,36.46692782,87.157,87.091,37.78029394]
[1772478227668,10.326,87.145,87.091,37.78029394]
[1772478228175,160.482,87.226,87.091,37.78029394]
[1772478228176,36.65640561,87.189,87.091,37.78029394]
[1772478228376,36.65640561,87.229,87.131,37.78029394]
[1772478228775,9.04016584,87.23,87.131,37.78029394]